fUST/lending_fUST_20240111
["ID","MTS","AMOUNT","RATE_DAILY","PERIOD"]
[311156469,1704941442184,-500.0,0.00030136,2]
[311156470,1704941442193,-507.68147259,0.00030136,2]
[311156471,1704941442201,-502.49872204,0.00030136,2]
[311156472,1704941442211,-500.41,0.00030136,2]
[311156473,1704941442221,-421.07384829,0.00030136,2]
[311156474,1704941442231,-500.0,0.00030136,2]
[311156475,1704941442241,-500.0,0.00030136,2]
[311156476,1704941442252,-500.0,0.00030136,2]
[311156477,1704941442261,-500.0,0.00030136,2]
[311156478,1704941442271,-500.0,0.00030136,2]
[311156479,1704941442280,-500.0,0.00030136,2]
[311156480,1704941442289,-500.0,0.00030136,2]
[311156481,1704941442298,-500.0,0.00030136,2]
[311156482,1704941442308,-500.0,0.00030136,2]
[311156483,1704941442317,-500.0,0.00030136,2]
[311156484,1704941442326,-500.0,0.00030136,2]
[311156486,1704941442336,-384.12539335,0.00030136,2]
[311156488,1704941442346,-500.0,0.00030136,2]
[311156489,1704941442355,-500.0,0.00030136,2]
[311156491,1704941442364,-909.81265157,0.00030136,2]
[311156493,1704941442373,-500.0,0.00030136,2]
[311156495,1704941442382,-500.0,0.00030136,2]
[311156497,1704941442391,-500.0,0.00030136,2]
[311156500,1704941442401,-500.0,0.00030136,2]
[311156502,1704941442410,-500.0,0.00030136,2]
[311156505,1704941442419,-500.0,0.00030136,2]
[311156507,1704941442429,-500.0,0.00030136,2]
[311156509,1704941442438,-230.84334159,0.00030136,2]
[311156511,1704941442447,-500.0,0.00030136,2]
[311156513,1704941442456,-505.49538568,0.00030136,2]
[311156515,1704941442465,-500.0,0.00030136,2]
[311156517,1704941442475,-503.58951004,0.00030136,2]
[311156519,1704941442484,-500.0,0.00030136,2]
[311156521,1704941442493,-500.0,0.00030136,2]
[311156522,1704941442502,-500.0,0.00030136,2]
[311156523,1704941442511,-503.18365884,0.00030136,2]
[311156524,1704941442520,-507.36864681,0.00030136,2]
[311156525,1704941442529,-500.0,0.00030136,2]
[311156526,1704941442538,-500.0,0.00030136,2]
[311156527,1704941442548,-500.0,0.00030136,2]
[311156528,1704941442557,-500.0,0.00030136,2]
[311156529,1704941442566,-500.0,0.00030136,2]
[311156530,1704941442575,-500.0,0.00030136,2]
[311156531,1704941442584,-500.0,0.00030136,2]
[311156532,1704941442593,-448.84408619,0.00030136,2]
[311156534,1704941442620,-51.15591381,0.00030136,2]
[311156535,1704941442629,-500.0,0.00030136,2]
[311156536,1704941442638,-220.2460912,0.00030136,2]
[311156537,1704941442647,-217.36605531,0.00030136,2]
[311156538,1704941442657,-500.0,0.00030136,2]
[311156539,1704941442666,-500.0,0.00030136,2]
[311156540,1704941442675,-1197.82,0.00030136,2]
[311156541,1704941442684,-1197.82,0.00030136,2]
[311156542,1704941442693,-1197.82,0.00030136,2]
[311156543,1704941442702,-1197.82,0.00030136,2]
[311156544,1704941442711,-1197.82,0.00030136,2]
[311156546,1704941442720,-1197.82,0.00030136,2]
[311156548,1704941442731,-1197.82,0.00030136,2]
[311156549,1704941442740,-1197.82,0.00030136,2]
[311156550,1704941442749,-1197.82,0.00030136,2]
[311156551,1704941442758,-500.0,0.00030136,2]
[311156552,1704941442766,-1197.82,0.00030136,2]
[311156553,1704941442775,-500.0,0.00030136,2]
[311156555,1704941442785,-1197.82,0.00030136,2]
[311156557,1704941442794,-1197.82,0.00030136,2]
[311156558,1704941442803,-1197.82,0.00030136,2]
[311156559,1704941442811,-1197.82,0.00030136,2]
[311156560,1704941442821,-1197.82,0.00030136,2]
[311156561,1704941442830,-1197.82,0.00030136,2]
[311156563,1704941442839,-1197.82,0.00030136,2]
[311156564,1704941442848,-1197.82,0.00030136,2]
[311156565,1704941442856,-1197.82,0.00030136,2]
[311156566,1704941442865,-1197.82,0.00030136,2]
[311156567,1704941442875,-1197.82,0.00030136,2]
[311156568,1704941442883,-1197.82,0.00030136,2]
[311156569,1704941442892,-1197.82,0.00030136,2]
[311156570,1704941442901,-500.81246764,0.00030136,2]
[311156571,1704941442910,-1197.94222227,0.00030136,2]
[311156572,1704941442920,-500.0,0.00030136,2]
[311156573,1704941442929,-503.55062349,0.00030136,2]
[311156574,1704941442938,-500.0,0.00030136,2]
[311156575,1704941442947,-500.0,0.00030136,2]
[311156576,1704941442956,-495.70574362,0.00030136,14]
[311156577,1704941442966,-501.88985475,0.00030136,2]
[311156578,1704941442975,-500.0,0.00030136,2]
[311156580,1704941442984,-500.0,0.00030136,2]
[311156582,1704941442993,-500.0,0.00030136,2]
[311156583,1704941443002,-500.0,0.00030136,2]
[311156586,1704941443012,-500.0,0.00030136,2]
[311156588,1704941443022,-500.10363802,0.00030136,2]
[311156590,1704941443031,-500.0,0.00030136,2]
[311156591,1704941443040,-1116.02809782,0.00030136,2]
[311156611,1704941443279,-677.72190218,0.00030136,2]
[311156613,1704941443288,-500.0,0.00030136,2]
[311156615,1704941443297,-503.69029425,0.00030136,2]
[311156616,1704941443306,-500.0,0.00030136,2]
[311156617,1704941443315,-500.0,0.00030136,2]
[311156618,1704941443324,-500.0,0.00030136,2]
[311156619,1704941443333,-501.40685239,0.00030136,2]
[311156620,1704941443343,-500.0,0.00030136,2]
[311156621,1704941443352,-515.14845484,0.00030136,2]
[311156622,1704941443362,-546.57919463,0.00030136,2]
[311156623,1704941443370,-500.0,0.00030136,2]
[311156624,1704941443380,-500.0,0.00030136,2]
[311156625,1704941443389,-500.0,0.00030136,2]
[311156626,1704941443399,-500.0,0.00030136,2]
[311156627,1704941443409,-500.0,0.00030136,2]
[311156628,1704941443418,-500.0,0.00030136,2]
[311156629,1704941443427,-500.0,0.00030136,2]
[311156630,1704941443436,-500.0,0.00030136,2]
[311156631,1704941443445,-553.98127692,0.00030136,2]
[311156632,1704941443454,-500.0,0.00030136,2]
[311156633,1704941443463,-500.0,0.00030136,2]
[311156634,1704941443472,-500.0,0.00030136,2]
[311156635,1704941443482,-500.0,0.00030136,2]
[311156636,1704941443491,-510.03142022,0.00030136,2]
[311156637,1704941443501,-458.76312595,0.00030136,2]
[311156638,1704941443510,-500.0,0.00030136,2]
[311156639,1704941443519,-509.18685247,0.00030136,2]
[311156640,1704941443528,-260.14544429,0.00030136,2]
[311156641,1704941443537,-500.0,0.00030136,2]
[311156642,1704941443547,-500.0,0.00030136,2]
[311156643,1704941443556,-501.28748838,0.00030136,2]
[311156644,1704941443566,-560.66390144,0.00030136,2]
[311156645,1704941443575,-500.0,0.00030136,2]
[311156646,1704941443585,-500.0,0.00030136,2]
[311156647,1704941443594,-1036.35,0.00030136,2]
[311156648,1704941443603,-500.0,0.00030136,2]
[311156649,1704941443612,-500.0,0.00030136,2]
[311156650,1704941443621,-500.0,0.00030136,2]
[311156651,1704941443630,-500.0,0.00030136,2]
[311156652,1704941443639,-500.0,0.00030136,2]
[311156653,1704941443648,-508.88550191,0.00030136,2]
[311156654,1704941443657,-524.05,0.00030136,2]
[311156655,1704941443667,-500.0,0.00030136,2]
[311156656,1704941443675,-203.6129773,0.00030136,2]
[311156657,1704941443684,-548.82,0.00030136,2]
[311156658,1704941443693,-500.0,0.00030136,2]
[311156659,1704941443702,-504.99644365,0.00030136,30]
[311156660,1704941443711,-500.0,0.00030136,2]
[311156661,1704941443720,-500.0,0.00030136,2]
[311156662,1704941443730,-509.94278174,0.00030136,2]
[311156663,1704941443738,-500.0,0.00030136,2]
[311156664,1704941443748,-500.0,0.00030136,2]
[311156665,1704941443758,-515.83616161,0.00030136,2]
[311156666,1704941443767,-281.74517376,0.00030136,2]
[311156667,1704941443775,-500.0,0.00030136,2]
[311156668,1704941443784,-500.0,0.00030136,2]
[311156669,1704941443793,-500.0,0.00030136,2]
[311156670,1704941443802,-504.7252435,0.00030136,2]
[311156671,1704941443811,-506.61528026,0.00030136,2]
[311156672,1704941443820,-500.0,0.00030136,2]
[311156673,1704941443829,-500.0,0.00030136,2]
[311156674,1704941443838,-500.0,0.00030136,2]
[311156675,1704941443848,-568.37,0.00030136,2]
[311156676,1704941443857,-500.0,0.00030136,2]
[311156677,1704941443866,-156.25447643,0.00030136,2]
[311156678,1704941443876,-1011.98987962,0.00030136,5]
[311156679,1704941443885,-500.55430526,0.00030136,2]
[311156680,1704941443897,-500.0,0.00030136,2]
[311156681,1704941443906,-500.0,0.00030136,2]
[311156682,1704941443915,-500.0,0.00030136,2]
[311156683,1704941443925,-500.0,0.00030136,2]
[311156684,1704941443934,-500.0,0.00030136,2]
[311156685,1704941443945,-167.03143862,0.00030136,2]
[311156686,1704941443954,-505.37692655,0.00030136,2]
[311156687,1704941443966,-522.97859531,0.00030136,2]
[311156688,1704941443976,-500.0,0.00030136,2]
[311156689,1704941443985,-500.0,0.00030136,2]
[311156690,1704941443994,-500.0,0.00030136,2]
[311156691,1704941444003,-518.15706842,0.00030136,2]
[311156692,1704941444012,-502.13282351,0.00030136,2]
[311156693,1704941444021,-500.0,0.00030136,2]
[311156694,1704941444030,-505.13877686,0.00030136,2]
[311156695,1704941444040,-500.0,0.00030136,2]
[311156696,1704941444050,-501.25420699,0.00030136,2]
[311156697,1704941444060,-471.58118241,0.00030136,2]
[311156698,1704941444069,-500.0,0.00030136,2]
[311156699,1704941444078,-500.0,0.00030136,2]
[311156700,1704941444088,-500.0,0.00030136,2]
[311156701,1704941444097,-500.0,0.00030136,2]
[311156702,1704941444106,-500.0,0.00030136,2]
[311156703,1704941444115,-764.5,0.00030136,2]
[311156704,1704941444124,-500.0,0.00030136,2]
[311156705,1704941444133,-526.31638837,0.00030136,2]
[311156706,1704941444142,-500.0,0.00030136,2]
[311156707,1704941444152,-653.83,0.00030136,2]
[311156708,1704941444161,-500.0,0.00030136,2]
[311156709,1704941444170,-502.87918965,0.00030136,2]
[311156710,1704941444179,-500.0,0.00030136,2]
[311156711,1704941444188,-500.0,0.00030136,2]
[311156712,1704941444280,-502.09711386,0.00030136,2]
[311156713,1704941444290,-500.0,0.00030136,2]
[311156714,1704941444301,-500.86129898,0.00030136,2]
[311156715,1704941444310,-500.0,0.00030136,2]
[311156716,1704941444319,-500.20971053,0.00030136,2]
[311156717,1704941444331,-500.0,0.00030136,2]
[311156718,1704941444341,-502.26759104,0.00030136,2]
[311156719,1704941444351,-500.0,0.00030136,2]
[311156720,1704941444359,-412.25216866,0.00030136,2]
[311156721,1704941444369,-500.0,0.00030136,2]
[311156722,1704941444378,-500.0,0.00030136,2]
[311156723,1704941444387,-500.0,0.00030136,2]
[311156724,1704941444396,-500.0,0.00030136,2]
[311156725,1704941444405,-500.0,0.00030136,2]
[311156726,1704941444414,-500.0,0.00030136,2]
[311156727,1704941444423,-500.0,0.00030136,2]
[311156728,1704941444432,-580.59,0.00030136,2]
[311156729,1704941444441,-500.0,0.00030136,2]
[311156730,1704941444450,-500.0,0.00030136,2]
[311156731,1704941444459,-330.37774473,0.00030136,2]
[311156732,1704941444468,-500.0,0.00030136,2]
[311156733,1704941444478,-500.0,0.00030136,2]
[311156734,1704941444486,-502.14865231,0.00030136,2]
[311156735,1704941444496,-500.0,0.00030136,2]
[311156736,1704941444505,-500.0,0.00030136,2]
[311156737,1704941444514,-500.0,0.00030136,2]
[311156738,1704941444523,-500.0,0.00030136,2]
[311156739,1704941444532,-500.0,0.00030136,2]
[311156740,1704941444541,-500.0,0.00030136,2]
[311156741,1704941444550,-500.0,0.00030136,2]
[311156742,1704941444559,-500.0,0.00030136,2]
[311156743,1704941444567,-500.0,0.00030136,2]
[311156744,1704941444576,-500.0,0.00030136,2]
[311156745,1704941444585,-500.0,0.00030136,2]
[311156746,1704941444594,-500.0,0.00030136,2]
[311156747,1704941444603,-500.0,0.00030136,2]
[311156748,1704941444612,-500.0,0.00030136,2]
[311156749,1704941444621,-500.0,0.00030136,2]
[311156750,1704941444630,-500.0,0.00030136,2]
[311156751,1704941444639,-500.0,0.00030136,2]
[311156752,1704941444648,-500.0,0.00030136,2]
[311156753,1704941444658,-289.88041336,0.00030136,2]
[311156754,1704941444667,-448.03715962,0.00030136,2]
[311156755,1704941444676,-500.0,0.00030136,2]
[311156756,1704941444685,-114.94985119,0.00030136,2]
[311156757,1704941444843,-385.05014881,0.00030136,2]
[311156758,1704941444853,-500.0,0.00030136,2]
[311156759,1704941444862,-419.60938855,0.00030136,2]
[311156760,1704941444871,-500.0,0.00030136,2]
[311156761,1704941444880,-182.36416052,0.00030136,2]
[311156762,1704941444889,-500.0,0.00030136,2]
[311156763,1704941444898,-500.0,0.00030136,2]
[311156764,1704941444907,-500.0,0.00030136,2]
[311156765,1704941444916,-452.81185643,0.00030136,2]
[311156766,1704941444925,-500.0,0.00030136,2]
[311156767,1704941444934,-500.0,0.00030136,2]
[311156768,1704941444943,-500.0,0.00030136,2]
[311156769,1704941444952,-200.0,0.00030136,2]
[311156770,1704941444961,-500.0,0.00030136,2]
[311156771,1704941444970,-500.0,0.00030136,2]
[311156772,1704941444979,-500.0,0.00030136,2]
[311156773,1704941444988,-402.80640886,0.00030136,2]
[311156774,1704941444997,-500.0,0.00030136,2]
[311156775,1704941445007,-500.0,0.00030136,2]
[311156776,1704941445017,-1004.02452358,0.00030136,2]
[311156777,1704941445026,-154.4699964,0.00030136,2]
[311156778,1704941445035,-500.0,0.00030136,2]
[311156779,1704941445046,-500.0,0.00030136,2]
[311156780,1704941445055,-500.0,0.00030136,2]
[311156781,1704941445065,-500.0,0.00030136,2]
[311156782,1704941445075,-171.00505057,0.00030136,2]
[311156783,1704941445084,-500.0,0.00030136,2]
[311156784,1704941445094,-504.73832903,0.00030136,2]
[311156785,1704941445105,-500.0,0.00030136,2]
[311156786,1704941445114,-500.0,0.00030136,2]
[311156787,1704941445123,-500.0,0.00030136,2]
[311156788,1704941445133,-1264.52,0.00030136,2]
[311156789,1704941445142,-503.20398845,0.00030136,2]
[311156790,1704941445152,-500.0,0.00030136,2]
[311156791,1704941445161,-500.0,0.00030136,2]
[311156792,1704941445170,-500.0,0.00030136,2]
[311156793,1704941445179,-581.66,0.00030136,2]
[311156794,1704941445188,-500.0,0.00030136,2]
[311156795,1704941445200,-500.0,0.00030136,2]
[311156796,1704941445210,-500.0,0.00030136,2]
[311156797,1704941445220,-500.0,0.00030136,2]
[311156798,1704941445229,-558.7,0.00030136,2]
[311156799,1704941445238,-503.56977046,0.00030136,2]
[311156800,1704941445247,-500.0,0.00030136,2]
[311156801,1704941445256,-501.01611635,0.00030136,2]
[311156802,1704941445266,-282.86431862,0.00030136,2]
[311156803,1704941445275,-633.5610616,0.00030136,2]
[311156804,1704941445284,-500.0,0.00030136,5]
[311156805,1704941445294,-500.0,0.00030136,2]
[311156806,1704941445305,-500.0,0.00030136,2]
[311156807,1704941445314,-500.0,0.00030136,2]
[311156808,1704941445323,-500.0,0.00030136,2]
[311156809,1704941445334,-500.0,0.00030136,2]
[311156810,1704941445344,-500.0,0.00030136,2]
[311156811,1704941445353,-203.18962683,0.00030136,2]
[311156812,1704941445362,-502.14366015,0.00030136,2]
[311156813,1704941445372,-886.12,0.00030136,2]
[311156814,1704941445381,-500.0,0.00030136,2]
[311156816,1704941445390,-500.5582127,0.00030136,2]
[311156817,1704941445399,-500.0,0.00030136,2]
[311156819,1704941445408,-502.16777069,0.00030136,2]
[311156820,1704941445417,-261.81984211,0.00030136,2]
[311156822,1704941445427,-500.0,0.00030136,2]
[311156823,1704941445436,-713.17,0.00030136,2]
[311156824,1704941445445,-154.39672981,0.00030136,2]
[311156825,1704941445457,-349.44261804,0.00030136,2]
[311156826,1704941445466,-332.39589243,0.00030136,2]
[311156841,1704941572321,1800.0,0.0003,30]
[311156842,1704941663933,13084.31007237,0.0003,120]
[311156970,1704942638309,-509.10030575,0.00017411,2]
[311156972,1704942638319,-154.98450155,0.00017411,3]
[311156974,1704942638328,-154.98450155,0.00017412,2]
[311156976,1704942638337,-872.72571525,0.00017412,2]
[311156978,1704942638347,-984.26322192,0.00017447,2]
[311156980,1704942638357,-184.130276,0.00017771,2]
[311156982,1704942638366,-246.10686283,0.00017897,2]
[311156984,1704942638375,-10503.19627673,0.00017898,2]
[311156986,1704942638385,-1150.0,0.000183,2]
[311156988,1704942638394,-1578.97802722,0.00019,2]
[311156989,1704942638404,-213.23538049,0.00019364,2]
[311156991,1704942638413,-4813.36,0.00019377,3]
[311156993,1704942638422,-9178.77,0.00019377,3]
[311156995,1704942638432,-1294.48504841,0.00019383,2]
[311156998,1704942638442,-277.50531123,0.00019383,2]
[311157000,1704942638452,-251.166416,0.00019383,2]
[311157001,1704942638462,-1244.31786917,0.00019383,2]
[311157003,1704942638472,-365.21040329,0.00019383,2]
[311157005,1704942638482,-275.96986368,0.00019383,2]
[311157008,1704942638494,-930.02599665,0.00019384,2]
[311157010,1704942638504,-156.51254466,0.00019385,2]
[311157011,1704942638515,-200.11869685,0.00019385,2]
[311157013,1704942638525,-523.37735557,0.00019385,2]
[311157015,1704942638535,-184.68732578,0.00019385,2]
[311157017,1704942638546,-4325.64770899,0.00019385,2]
[311157019,1704942638555,-8120.57371208,0.00019385,2]
[311157021,1704942638564,-167.58227819,0.00019385,2]
[311157023,1704942638574,-540.54234042,0.00019385,2]
[311157025,1704942638583,-215.91663289,0.00019385,2]
[311157027,1704942638592,-266.7531457,0.00019385,2]
[311157029,1704942638602,-295.66227406,0.00019385,2]
[311157031,1704942638611,-175.61306139,0.00019385,2]
[311157033,1704942638621,-155.16367244,0.00019385,2]
[311157035,1704942638631,-155.31481865,0.00019385,2]
[311157037,1704942638641,-174.76873055,0.00019385,2]
[311157039,1704942638650,-155.31506109,0.00019385,2]
[311157040,1704942638660,-261.21468539,0.00019385,2]
[311157042,1704942638670,-728.42753074,0.00019385,2]
[311157044,1704942638681,-787.82571813,0.00019385,2]
[311157046,1704942638691,-659.81880984,0.00019385,2]
[311157049,1704942638702,-379.10751378,0.00019385,2]
[311157050,1704942638712,-364.0029808,0.00019385,2]
[311157053,1704942638721,-641.28147893,0.00019385,2]
[311157055,1704942638731,-155.35370352,0.00019385,2]
[311157056,1704942638740,-234.70028966,0.00019385,2]
[311157059,1704942638751,-271.85427602,0.00019385,2]
[311157060,1704942638760,-155.089591,0.00019385,2]
[311157062,1704942638769,-513.9410778,0.00019385,2]
[311157064,1704942638779,-213.19734832,0.00019385,2]
[311157066,1704942638789,-213.66513779,0.00019385,2]
[311157068,1704942638799,-155.07506532,0.00019385,2]
[311157071,1704942638809,-1755.60507505,0.00019385,2]
[311157073,1704942638819,-281.7555391,0.00019385,2]
[311157074,1704942638830,-1119.5425572,0.00019385,2]
[311157076,1704942638839,-158.6771109,0.00019385,2]
[311157078,1704942638849,-155.64625539,0.00019385,2]
[311157080,1704942638858,-180.19693683,0.00019385,2]
[311157081,1704942638871,-155.0151673,0.00019385,2]
[311157082,1704942638884,-191.41815499,0.00019385,2]
[311157083,1704942638893,-714.37566498,0.00019385,2]
[311157084,1704942638934,-367.14708538,0.00019385,2]
[311157085,1704942638945,-229.13208191,0.00019385,2]
[311157086,1704942638954,-155.20238208,0.00019385,2]
[311157087,1704942638964,-1992.12050163,0.00019385,2]
[311157088,1704942638974,-155.68163135,0.00019385,2]
[311157089,1704942638983,-155.15886733,0.00019385,2]
[311157090,1704942638992,-737.33207211,0.00019385,2]
[311157091,1704942639002,-175.13076194,0.00019385,2]
[311157092,1704942639011,-155.36425432,0.00019385,2]
[311157093,1704942639021,-155.68825038,0.00019385,2]
[311157094,1704942639030,-185.74254481,0.00019385,2]
[311157095,1704942639040,-493.21389024,0.00019385,2]
[311157096,1704942639049,-155.12349042,0.00019385,2]
[311157097,1704942639058,-229.53069442,0.00019385,2]
[311157098,1704942639067,-243.35599312,0.00019385,2]
[311157099,1704942639076,-155.11758818,0.00019385,2]
[311157100,1704942639086,-1598.5088879,0.00019385,2]
[311157101,1704942639099,-157.08250029,0.00019385,2]
[311157102,1704942639111,-279.75965273,0.00019385,2]
[311157103,1704942639121,-1791.03495825,0.00019385,5]
[311157104,1704942639131,-191.81184539,0.00019386,2]
[311157105,1704942639142,-780.37469095,0.00019386,2]
[311157106,1704942639152,-3169.50483987,0.00019386,2]
[311157107,1704942639163,-129101.53018016,0.00019387,2]
[311157108,1704942639172,-1112.22182837,0.000195,2]
[311157109,1704942639183,-200.0,0.00019687,2]
[311157110,1704942639193,-694.105852,0.000199,2]
[311157111,1704942639204,-154.98450155,0.0002,2]
[311157112,1704942639215,-266.37190097,0.0002,2]
[311157113,1704942639226,-270787.85398816,0.0002,2]
[311157114,1704942639237,-569.37401545,0.0002,2]
[311157115,1704942639249,-1195.27282006,0.0002,2]
[311157116,1704942639259,-154.98450155,0.0002,2]
[311157117,1704942639271,-236.97375297,0.0002,2]
[311157118,1704942639281,-677.0708176,0.0002,2]
[311157119,1704942639291,-154.98450155,0.0002,2]
[311157120,1704942639301,-665.38112702,0.0002,2]
[311157121,1704942639309,-2130.59703965,0.0002,5]
[311157122,1704942639319,-1476.18263852,0.0002,2]
[311157123,1704942639329,-853.72221584,0.0002,2]
[311157124,1704942639339,-154.98450155,0.0002,2]
[311157125,1704942639348,-200.0,0.0002,2]
[311157126,1704942639357,-156.98066476,0.0002,2]
[311157127,1704942639366,-168.57048586,0.0002,2]
[311157128,1704942639375,-6528.127613,0.0002,2]
[311157129,1704942639384,-6528.127613,0.0002,2]
[311157130,1704942639394,-6528.127613,0.0002,2]
[311157131,1704942639403,-6528.127613,0.0002,2]
[311157132,1704942639412,-6528.127613,0.0002,2]
[311157133,1704942639423,-326.7917286,0.00021,2]
[311157134,1704942639433,-232.56616313,0.00021,2]
[311157135,1704942639442,-21896.11056994,0.00021,2]
[311157136,1704942639451,-1546.81985246,0.00021,2]
[311157137,1704942639461,-193.97785315,0.00021,2]
[311157138,1704942639471,-166.666666,0.00021918,2]
[311157139,1704942639480,-337.0634007,0.00021918,2]
[311157140,1704942639489,-3935.17481612,0.00022,2]
[311157141,1704942639498,-4918.87947459,0.00022,2]
[311157142,1704942639507,-156.88951629,0.00022,2]
[311157143,1704942639517,-292.87321948,0.00022,4]
[311157144,1704942639528,-786.22948107,0.00022,2]
[311157145,1704942639537,-694.10585197,0.00022357,2]
[311157146,1704942639547,-166.666666,0.00022431,2]
[311157147,1704942639556,-166.666666,0.00022944,2]
[311157148,1704942639565,-9923.17263833,0.00023,2]
[311157149,1704942639575,-2093.45221107,0.00023,2]
[311157150,1704942639585,-500.0,0.00023288,2]
[311157151,1704942639596,-620.18748071,0.00023288,2]
[311157152,1704942639607,-500.0,0.00023288,2]
[311157153,1704942639617,-500.0,0.00023288,2]
[311157154,1704942639627,-500.0,0.00023288,2]
[311157155,1704942639636,-500.0,0.00023288,2]
[311157156,1704942639646,-297.81002865,0.00023288,2]
[311157157,1704942639656,-500.0,0.00023288,2]
[311157158,1704942639666,-500.0,0.00023288,2]
[311157159,1704942639675,-500.0,0.00023288,2]
[311157160,1704942639686,-500.0,0.00023288,2]
[311157161,1704942639696,-500.0,0.00023288,2]
[311157162,1704942639707,-500.0,0.00023288,2]
[311157163,1704942639716,-629.80045447,0.00023288,2]
[311157164,1704942639726,-500.0,0.00023288,2]
[311157165,1704942639737,-280.64911559,0.00023288,2]
[311157166,1704942639746,-500.0,0.00023288,2]
[311157167,1704942639757,-500.0,0.00023288,2]
[311157168,1704942639767,-500.0,0.00023288,2]
[311157169,1704942639776,-500.0,0.00023288,2]
[311157170,1704942639786,-461.55823494,0.00023288,2]
[311157171,1704942639795,-500.0,0.00023288,2]
[311157172,1704942639805,-500.0,0.00023288,2]
[311157173,1704942639816,-500.0,0.00023288,2]
[311157174,1704942639825,-500.0,0.00023288,2]
[311157175,1704942639836,-500.0,0.00023288,2]
[311157176,1704942639845,-500.0,0.00023288,2]
[311157177,1704942639855,-500.0,0.00023288,2]
[311157178,1704942639864,-500.0,0.00023288,2]
[311157179,1704942639874,-500.0,0.00023288,2]
[311157180,1704942639884,-500.0,0.00023288,2]
[311157181,1704942639894,-166.666666,0.00023456,2]
[311157182,1704942639904,-166.666666,0.00023969,2]
[311157183,1704942639913,-497.12734932,0.0002398,5]
[311157184,1704942639923,-614.12133667,0.00024,2]
[311157185,1704942639932,-2293.60196635,0.00024,2]
[311157186,1704942639942,-155.24711582,0.00024,2]
[311157187,1704942639953,-166.666666,0.00024482,2]
[311157188,1704942639964,-380.0,0.00024658,2]
[311157189,1704942639974,-200.0,0.00024658,2]
[311157190,1704942639985,-687.75702701,0.000247,2]
[311157191,1704942639995,-694.10585197,0.00024813,2]
[311157192,1704942640005,-3000.0,0.00025,2]
[311157193,1704942640016,-677.62834989,0.00025,2]
[311157194,1704942640025,-4711.91259146,0.00025,2]
[311157195,1704942640036,-154.98450155,0.00025,2]
[311157196,1704942640045,-295.41689888,0.00025,2]
[311157199,1704942640056,-155.2351122,0.00025,2]
[311157201,1704942640066,-7193.15698043,0.00025297,2]
[311157203,1704942640076,-200.0,0.00025479,2]
[311157205,1704942640086,-525.99300196,0.00026,2]
[311157207,1704942640095,-240.7469676,0.00026,2]
[311157209,1704942640104,-3645.64225585,0.00026,2]
[311157212,1704942640114,-50000.0,0.00026244,2]
[311157214,1704942640124,-722.18698415,0.000264,2]
[311157216,1704942640134,-309.94478728,0.000265,2]
[311157218,1704942640143,-184.130276,0.00026657,2]
[311157220,1704942640153,-733.338016,0.00027,2]
[311157222,1704942640164,-694.10585197,0.0002727,2]
[311157224,1704942640173,-150.12,0.00027397,2]
[311157226,1704942640183,-155.0,0.00027397,2]
[311157228,1704942640192,-500.0,0.00027397,2]
[311157230,1704942640201,-34815.28968525,0.000275,2]
[311157232,1704942640210,-500.0,0.00027534,2]
[311157234,1704942640220,-500.0,0.00027671,2]
[311157236,1704942640229,-625.10934921,0.0002772,2]
[311157238,1704942640239,-500.0,0.00027808,2]
[311157240,1704942640249,-7499.18739298,0.000279,2]
[311157242,1704942640258,-500.0,0.00027945,2]